bitfinex/quotes_ETHUSD_20250715
["timestamp","ask_amount","ask_price","bid_price","bid_amount"]
[1752552129718,1e-08,2951.7,2951.6,29.3351773]
[1752552129936,1e-08,2951.7,2951.6,32.76244326]
[1752552130740,1e-08,2951.9,2951.8,3.38776339]
[1752552130939,1e-08,2951.9,2951.8,9.44614102]
[1752552131255,1e-08,2951.9,2951.8,9.59156339]
[1752552131455,5.211,2952.5,2952.4,3.38707492]
[1752552131619,0.001,2952.5,2952.4,3.38707492]
[1752552131820,0.001,2952.5,2952.4,3.58974566]
[1752552132022,0.001,2952.5,2952.4,13.58974566]
[1752552132358,0.001,2952.5,2952.4,13.56637492]
[1752552132653,0.001,2952.5,2952.4,16.81434088]
[1752552132816,0.001,2952.5,2952.4,16.80384088]
[1752552133527,0.001,2952.5,2952.4,16.81434088]
[1752552133735,0.001,2952.5,2952.4,16.80384088]
[1752552136479,0.001,2952.5,2952.4,16.81434088]
[1752552136642,0.001,2952.5,2952.4,16.80384088]
[1752552137083,0.001,2952.5,2952.4,23.40804786]
[1752552137852,0.001,2952.5,2952.4,28.61504786]
[1752552140590,0.001,2952.7,2952.5,13.3869602]
[1752552140775,0.001,2952.7,2952.6,13.38684549]
[1752552140950,0.001,2952.7,2952.6,19.36234549]
[1752552141157,0.001,2952.7,2952.6,19.53114549]
[1752552142586,0.4561,2953.9,2953.6,3.38562555]
[1752552142791,0.4561,2953.9,2953.7,3.38555789]
[1752552142950,0.7691,2954.1,2953.8,0.1688]
[1752552143566,0.4561,2954.0,2953.8,0.1688]
[1752552143963,0.4561,2953.9,2953.8,0.1688]
[1752552144591,1.2252,2953.9,2953.0,0.76]
[1752552144756,3.3856988,2953.6,2953.5,0.1688]
[1752552144956,4.18036868,2953.6,2953.3,0.1688]
[1752552145186,0.4561,2953.5,2953.3,0.1688]
[1752552145501,0.8127,2953.4,2952.8,5.203]
[1752552145667,3.38615738,2953.2,2953.1,0.1688]
[1752552145863,3.38615738,2953.2,2952.2,0.7562]
[1752552145864,3.38656601,2952.9,2952.2,0.7562]
[1752552146063,6.67459574,2953.2,2951.6,0.1793]
[1752552146064,0.7726,2953.0,2952.0,5.203]
[1752552146295,0.4561,2952.8,2952.5,0.1688]
[1752552146684,0.4561,2952.7,2952.5,0.1688]
[1752552146885,0.4561,2952.6,2952.5,0.1688]
[1752552147085,4.32787962,2953.0,2952.5,0.1688]
[1752552147086,0.9414,2953.0,2952.5,3.55567121]
[1752552147258,0.4561,2952.9,2952.5,0.1688]
[1752552147460,0.4561,2952.9,2952.7,0.1688]
[1752552148177,3.84263051,2952.9,2952.7,0.1688]
[1752552148375,4.18668105,2952.9,2952.7,0.1688]
[1752552148672,3.84271609,2952.8,2952.7,0.1688]
[1752552149314,3.84271609,2952.8,2952.2,13.38729458]
[1752552149497,0.4561,2952.7,2952.5,0.1688]
[1752552150489,3.38684549,2952.6,2952.5,0.1688]
[1752552150713,4.56591377,2952.6,2952.5,0.1688]
[1752552151108,3.38714418,2952.4,2951.8,5.203]
[1752552151315,0.4561,2952.3,2951.9,0.1688]
[1752552151494,3.38753387,2952.0,2951.9,0.1688]
[1752552151808,3.38765603,2951.9,2951.7,0.1688]
[1752552152016,3.38776339,2951.8,2951.7,0.1688]
[1752552152178,0.1688,2951.9,2951.4,0.1688]
[1752552152380,5.203,2952.2,2951.8,0.1688]
[1752552152712,5.203,2952.4,2951.9,0.03387648]
[1752552153014,5.6591,2952.4,2952.3,0.1688]
[1752552153681,5.6591,2952.4,2951.8,9.90646461]
[1752552153682,9.59617492,2952.4,2951.8,10.0]
[1752552153877,0.4561,2952.3,2951.9,3.38764863]
[1752552154216,0.4561,2952.3,2952.1,0.1688]
[1752552154785,0.4561,2952.3,2952.1,3.38734056]
[1752552155112,0.001,2952.5,2952.2,0.1688]
[1752552155282,0.001,2952.5,2952.3,0.03387189]
[1752552155481,0.001,2952.5,2952.4,0.1688]
[1752552155693,0.001,2952.5,2952.4,3.55587492]
[1752552156098,0.4571,2952.5,2952.4,0.1688]
[1752552157334,1.6053831,2952.5,2951.8,0.7974]
[1752552157496,9.04524024,2952.4,2952.1,0.1688]
[1752552157830,0.4561,2952.3,2952.1,0.1688]
[1752552157994,0.4561,2952.2,2952.1,0.1688]
[1752552158196,5.202,2952.4,2952.1,0.1688]
[1752552158197,0.4561,2952.3,2952.1,0.1688]
[1752552158796,0.4561,2952.2,2952.1,0.1688]
[1752552159403,0.4561,2952.2,2951.8,10.0]
[1752552159602,3.84350936,2952.2,2951.9,0.1688]
[1752552159811,3.3871932,2952.3,2951.9,0.1688]
[1752552159812,0.4561,2952.1,2951.9,0.1688]
[1752552159997,0.4561,2952.0,2951.9,0.1688]
[1752552160417,3.84363387,2952.0,2951.9,0.1688]
[1752552160691,3.84363387,2952.0,2951.6,0.002]
[1752552160692,0.55,2951.9,2951.6,0.002]
[1752552160891,3.38783147,2951.8,2951.6,0.002]
[1752552161132,3.38787817,2951.7,2951.6,0.002]
[1752552161335,4.37687817,2951.7,2951.6,0.002]
[1752552161529,4.85846599,2951.7,2951.6,0.002]
[1752552162100,5.64586599,2951.7,2951.6,0.002]
[1752552163013,1.70798782,2951.7,2951.6,0.002]
[1752552163219,6.4284,2951.7,2951.6,0.002]
[1752552163408,9.81627817,2951.7,2951.6,0.002]
[1752552164130,10.36627817,2951.7,2951.6,0.002]
[1752552166233,6.4284,2951.7,2951.6,0.002]
[1752552166438,5.641,2951.7,2951.6,0.002]
[1752552166800,9.02887817,2951.7,2951.6,0.002]
[1752552168310,10.27054317,2951.7,2951.6,0.002]
[1752552168519,11.09014317,2951.7,2951.6,0.002]
[1752552168710,11.64014317,2951.7,2951.6,0.002]
[1752552169842,11.64014317,2951.7,2951.6,1e-08]
[1752552169843,21.64014317,2951.7,2951.6,1e-08]
[1752552170720,16.43814317,2951.7,2951.6,1e-08]
[1752552170920,10.39847817,2951.7,2951.6,1e-08]
[1752552171126,10.56727817,2951.7,2951.6,1e-08]
[1752552172411,5.36527817,2951.7,2951.6,1e-08]
[1752552172611,10.56727817,2951.7,2951.6,1e-08]
[1752552173125,20.56727817,2951.7,2951.6,1e-08]
[1752552174661,4.70061148,2950.8,2950.7,1e-08]
[1752552174816,9.90261148,2950.8,2950.7,1e-08]
[1752552175014,20.34161148,2950.8,2950.7,1e-08]
[1752552175660,15.13961148,2950.8,2950.7,1e-08]
[1752552175918,4.70061148,2950.8,2950.7,1e-08]
[1752552176147,10.34261148,2950.8,2950.7,1e-08]
[1752552176327,20.34261148,2950.8,2950.7,1e-08]
[1752552178726,22.24858629,2950.8,2950.7,1e-08]
[1752552179470,13.93937093,2950.4,2950.3,1e-08]
[1752552179746,19.92207093,2950.4,2950.3,1e-08]
[1752552179960,20.36107093,2950.4,2950.3,1e-08]
[1752552180118,22.23458167,2950.4,2950.3,1e-08]
[1752552180320,17.03158167,2950.4,2950.3,1e-08]
[1752552180526,22.23458167,2950.4,2950.3,1e-08]
[1752552180771,1.87351074,2950.4,2950.3,3.38948582]
[1752552181006,7.07651074,2950.4,2950.3,0.67831825]
[1752552181144,10.46588167,2950.4,2950.3,1e-08]
[1752552181341,7.07651074,2950.4,2950.3,1e-08]
[1752552181577,7.07651074,2950.4,2950.3,0.16880001]
[1752552182101,7.07751074,2950.4,2950.3,8.31828582]
[1752552182268,7.07751074,2950.4,2950.3,4.92880001]
[1752552182471,5.204,2950.4,2950.3,9.25094081]
[1752552182768,5.204,2950.4,2950.3,5.861455]
[1752552182970,9.58237093,2950.4,2950.3,4.76000001]
[1752552185336,9.58237093,2950.4,2950.3,1e-08]
[1752552187013,10.39247093,2950.4,2950.3,1e-08]
[1752552189491,13.9396007,2950.2,2950.1,0.002]
[1752552189694,19.9245007,2950.2,2950.1,0.002]
[1752552190012,20.3635007,2950.2,2950.1,0.002]
[1752552190884,19.5826007,2950.2,2950.1,0.002]
[1752552192516,14.3786007,2950.2,2950.1,0.002]
[1752552192708,19.5826007,2950.2,2950.1,0.002]
[1752552194282,20.3676007,2950.2,2950.1,0.002]
[1752552197286,20.9676007,2950.2,2950.1,0.002]
[1752552197921,20.9676007,2950.2,2950.1,1e-08]
[1752552198829,29.1026007,2950.2,2950.1,1e-08]
[1752552199592,14.1085156,2950.1,2950.0,1e-08]
[1752552199822,15.3398156,2950.1,2950.0,1e-08]
[1752552200332,15.3398156,2950.1,2949.9,1e-08]
[1752552200333,14.7236305,2950.0,2949.9,1e-08]
[1752552200628,3.94097999,2949.0,2948.5,0.7821]
[1752552200924,9.14497999,2949.0,2948.5,0.7821]
[1752552201128,9.59247999,2949.0,2948.5,0.7821]
[1752552202320,9.14497999,2949.0,2948.5,0.7821]
[1752552203458,11.18366552,2949.0,2948.3,0.1688]
[1752552203752,11.63116552,2949.0,2948.2,0.1688]
[1752552205053,1.2329,2949.4,2948.7,0.7978]
[1752552205225,3.55977999,2949.0,2948.7,0.7978]
[1752552205427,8.59597999,2949.0,2948.7,0.9666]
[1752552205744,9.04347999,2949.0,2948.7,0.7978]
[1752552205928,10.83691533,2949.0,2948.7,0.7978]
[1752552206344,10.83691533,2949.0,2948.6,4.76]
[1752552206548,20.83691533,2949.0,2948.6,4.76]
[1752552208754,3.94097999,2949.0,2948.6,4.76]
[1752552208959,9.14597999,2949.0,2948.6,4.76]
[1752552210026,9.74597999,2949.0,2948.6,4.76]
[1752552210378,10.19347999,2949.0,2948.6,4.76]
[1752552210727,10.19347999,2949.0,2948.2,0.9396]
[1752552211228,20.19347999,2949.0,2948.2,0.9396]
[1752552213189,20.19347999,2949.0,2948.2,0.7708]
[1752552213190,21.01157999,2949.0,2948.2,0.7708]
[1752552213690,21.01157999,2949.0,2948.0,5.7004]
[1752552214835,21.01157999,2949.0,2948.5,0.8316]
[1752552215736,20.19347999,2949.0,2948.5,0.8316]
[1752552215938,20.19347999,2949.0,2948.2,0.8316]
[1752552216248,21.00177999,2949.0,2948.2,0.8316]
[1752552219646,21.00177999,2949.0,2948.9,1e-08]
[1752552221863,15.79677999,2949.0,2948.9,1e-08]
[1752552222182,21.00177999,2949.0,2948.9,1e-08]
[1752552222542,15.79677999,2949.0,2948.9,1e-08]
[1752552222744,21.00177999,2949.0,2948.9,1e-08]
[1752552224989,15.79677999,2949.0,2948.9,1e-08]
[1752552225669,21.00177999,2949.0,2948.9,1e-08]
[1752552229262,21.00177999,2949.0,2947.7,0.8285]
[1752552229263,13.9423604,2947.8,2947.7,0.002]
[1752552229458,19.1483604,2947.8,2947.7,0.002]
[1752552229688,19.6086604,2947.8,2947.7,0.002]
[1752552232159,4.74889058,2947.6,2947.5,1e-08]
[1752552232371,19.95489058,2947.6,2947.5,1e-08]
[1752552232701,21.8760764,2947.6,2947.5,1e-08]
[1752552237155,14.8534764,2947.6,2947.5,1e-08]
[1752552237362,20.0594764,2947.6,2947.5,1e-08]
[1752552237761,21.0697764,2947.6,2947.5,1e-08]
[1752552238080,1.46088582,2947.6,2947.5,0.77670001]
[1752552238254,10.6094764,2947.6,2947.5,0.77670001]
[1752552238683,6.66688582,2947.6,2947.5,0.77670001]
[1752552238914,6.66688582,2947.6,2947.5,0.95600001]
[1752552239120,6.66688582,2947.6,2947.5,4.51830569]
[1752552239295,1.46088582,2947.6,2947.5,5.34334469]
[1752552239658,5.207,2947.8,2947.7,4.19637548]
[1752552239874,5.207,2947.8,2947.7,4.37567548]
[1752552240189,0.1688,2948.6,2948.4,3.39160096]
[1752552240397,11.53405873,2949.0,2948.5,0.9832]
[1752552240719,0.55,2948.7,2948.5,0.9832]
[1752552240990,8.143,2949.0,2948.6,0.1793]
[1752552241165,5.207,2948.9,2948.6,0.1793]
[1752552242306,5.207,2948.9,2948.7,3.57054236]
[1752552242501,5.207,2948.9,2948.5,4.36416812]
[1752552242502,5.207,2948.9,2948.5,1.152]
[1752552242704,5.207,2948.9,2948.6,0.1793]
[1752552242903,0.55,2948.8,2948.5,0.9727]
[1752552243103,5.206,2948.7,2948.5,0.8039]
[1752552245483,8.59734741,2948.7,2948.5,0.8039]
[1752552245893,5.206,2948.7,2948.5,0.8039]
[1752552246417,8.59732653,2948.7,2948.5,0.8039]
[1752552246583,3.94144,2948.6,2948.5,0.8039]
[1752552246928,3.94144,2948.6,2948.2,4.76]
[1752552246929,0.55,2948.5,2948.2,5.5471]
[1752552247107,0.55,2948.3,2948.2,5.5471]
[1752552247278,5.756,2948.3,2948.2,8.93900014]
[1752552247474,5.206,2948.3,2948.2,5.7264]
[1752552247789,5.206,2948.3,2948.2,5.5471]
[1752552248531,5.756,2948.3,2948.2,0.7871]
[1752552248675,9.14778509,2948.3,2948.2,0.7871]
[1752552249524,3.94198477,2948.2,2947.9,0.9346]
[1752552249721,5.205,2948.1,2947.9,0.9346]
[1752552250185,0.55,2948.0,2947.9,0.765]
[1752552250388,3.94213025,2948.0,2947.9,0.765]
[1752552250783,3.94244034,2947.8,2947.6,0.765]
[1752552250982,5.755,2947.7,2947.6,0.765]
[1752552252321,3.94259058,2947.6,2947.5,1e-08]
[1752552252523,0.55,2947.6,2947.5,1e-08]
[1752552252886,3.94259058,2947.6,2947.5,1e-08]
[1752552253899,4.40499058,2947.6,2947.5,1e-08]
[1752552256925,14.40499058,2947.6,2947.5,1e-08]
[1752552258800,13.94259058,2947.6,2947.5,1e-08]
[1752552259128,3.39249091,2947.7,2947.6,0.8275]
[1752552259303,3.39259058,2947.6,2947.5,1e-08]
[1752552260212,14.40499058,2947.6,2947.5,1e-08]
[1752552260401,13.94259058,2947.6,2947.5,1e-08]
[1752552262890,15.18099058,2947.6,2947.5,1e-08]
[1752552263728,23.32299058,2947.6,2947.5,1e-08]
[1752552263931,33.22945519,2947.6,2947.5,1e-08]
[1752552266296,23.32299058,2947.6,2947.5,1e-08]
[1752552267192,28.54199058,2947.6,2947.5,1e-08]
[1752552267930,43.04199058,2947.6,2947.5,1e-08]
[1752552269901,14.76019645,2946.9,2946.8,1e-08]
[1752552270105,20.23247007,2946.9,2946.8,1e-08]
[1752552270306,20.8635484,2946.9,2946.8,1e-08]
[1752552272348,15.6475484,2946.9,2946.8,1e-08]
[1752552272521,20.69887007,2946.9,2946.8,1e-08]
[1752552272712,20.44259645,2946.9,2946.8,1e-08]
[1752552280273,10.1696,2946.8,2945.2,0.1696]
[1752552280584,0.1696,2945.8,2945.5,3.39499075]
[1752552280790,5.215,2945.7,2945.6,0.9475]
[1752552281596,9.15977883,2945.7,2945.6,0.7682]
[1752552281757,19.15977883,2945.7,2945.6,0.7682]
[1752552282244,0.55,2945.5,2945.0,0.1696]
[1752552282434,3.39525457,2945.3,2945.1,0.1793]
[1752552282636,5.215,2945.2,2945.1,0.9475]
[1752552283452,5.215,2945.2,2945.1,0.7829]
[1752552283685,5.215,2945.2,2945.1,0.9622]
[1752552283983,5.215,2945.2,2945.1,4.35767044]
[1752552284532,5.215,2945.2,2945.1,0.9622]
[1752552284737,5.215,2945.2,2945.1,4.35767044]
[1752552284976,5.215,2945.2,2945.1,1.23902274]
[1752552285137,5.215,2945.2,2945.1,1.41832274]
[1752552285336,5.215,2945.2,2945.1,4.81379318]
[1752552285580,5.215,2945.2,2945.1,1.41832274]
[1752552285737,5.215,2945.2,2945.1,4.81379318]
[1752552287208,8.146,2946.2,2945.2,0.7829]
[1752552287409,0.1696,2945.8,2945.4,4.17800303]
[1752552287702,0.1696,2945.8,2945.5,0.1793]
[1752552287703,5.223,2945.7,2945.5,0.1793]
[1752552287908,5.223,2945.7,2945.4,4.17800336]
[1752552288074,5.773,2945.7,2945.6,0.1793]
[1752552288275,5.773,2945.7,2945.4,0.7829]
[1752552288475,5.773,2945.7,2945.4,0.9622]
[1752552288773,5.773,2945.7,2945.5,0.1793]
[1752552291027,5.773,2945.7,2945.4,0.7829]
[1752552291180,9.16780536,2945.7,2945.4,0.7829]
[1752552291535,5.773,2945.7,2945.4,0.7829]
[1752552292181,9.1678045,2945.7,2945.4,0.7829]
[1752552292386,5.773,2945.7,2945.4,0.7829]
[1752552293609,5.773,2945.7,2945.3,0.1696]
[1752552293610,11.3301,2945.6,2945.3,0.1696]
[1752552293811,0.55,2945.0,2944.8,0.7943]
[1752552294012,5.217,2944.9,2944.8,0.7943]
[1752552294325,0.55,2944.8,2944.7,0.753]
[1752552300192,1.93046,2944.8,2944.4,0.1696]
[1752552300442,3.39491873,2945.6,2944.1,0.9918]
[1752552300443,0.55,2944.6,2944.1,0.9918]
[1752552300600,5.235,2944.5,2944.4,4.3879896]
[1752552301488,5.235,2944.5,2944.4,5.16643553]
[1752552301726,5.235,2944.5,2944.4,5.33603553]
[1752552301926,0.55,2945.1,2944.5,0.8125]
[1752552302113,5.241,2945.0,2944.9,0.8125]
[1752552302317,5.241,2945.0,2944.9,4.20820104]
[1752552302633,5.241,2945.0,2944.9,1.93875825]
[1752552302932,5.241,2945.0,2944.9,5.33445929]
[1752552303434,5.24,2945.0,2944.9,10.09445929]
[1752552305396,0.55,2945.9,2945.1,0.8173]
[1752552305601,0.1696,2945.8,2945.2,0.1793]
[1752552305842,0.55,2945.7,2945.3,0.1696]
[1752552306157,5.238,2945.6,2945.3,3.56477574]
[1752552306300,5.238,2945.6,2945.3,0.1696]
[1752552306499,5.238,2945.6,2945.4,3.39511559]
[1752552306936,5.238,2945.6,2945.3,3.56478512]
[1752552307339,5.238,2945.6,2945.3,0.1696]
[1752552307542,3.39500933,2945.5,2945.1,5.5773]
[1752552307841,5.238,2945.6,2945.2,3.39524729]
[1752552308515,5.238,2945.6,2945.1,5.7469]
[1752552308715,5.238,2945.6,2945.3,3.3951259]
[1752552308914,5.238,2945.6,2945.4,3.39508472]
[1752552309113,5.238,2945.6,2945.1,5.7469]
[1752552309114,5.238,2945.6,2945.3,3.39519133]
[1752552309313,1.15,2945.7,2945.3,0.1696]
[1752552309521,5.235,2945.5,2945.3,3.56481363]
[1752552309929,5.235,2945.5,2945.3,0.1696]
[1752552310135,5.233,2945.4,2945.3,0.1696]
[1752552310342,5.233,2945.4,2945.3,3.56483987]
[1752552311228,5.233,2945.4,2945.3,0.1696]
[1752552311428,5.233,2945.4,2945.1,0.8173]
[1752552311633,5.233,2945.4,2945.1,4.38231214]
[1752552311813,5.233,2945.4,2945.1,0.9869]
[1752552312011,5.233,2945.4,2945.1,4.38236283]
[1752552312313,0.981,2945.3,2945.0,4.76]
[1752552312614,0.431,2945.2,2944.9,3.39769028]
[1752552312840,5.231,2945.1,2944.9,0.002]
[1752552313039,5.231,2945.1,2943.7,0.7583]
[1752552313040,0.7763,2944.8,2943.7,0.7583]
[1752552313238,0.55,2945.0,2944.3,0.7563]
[1752552313405,0.55,2944.8,2944.4,3.39623903]
[1752552313610,5.239,2944.7,2944.3,0.7563]
[1752552313845,5.67,2944.7,2944.2,3.39650819]
[1752552314440,5.67,2944.7,2944.1,0.7563]
[1752552314441,0.981,2944.6,2944.1,0.7563]
[1752552314641,3.39637491,2944.4,2943.9,0.8031]
[1752552314838,0.7523,2944.2,2943.7,0.002]
[1752552315036,3.39662866,2944.1,2943.7,0.002]
[1752552315251,5.242,2944.0,2943.7,0.002]
[1752552315552,5.673,2944.0,2943.7,0.002]
[1752552316454,0.55,2943.9,2943.7,0.002]
[1752552316821,5.242,2943.8,2943.7,3.3990853]
[1752552317457,0.55,2944.6,2944.2,3.39649875]
[1752552317656,0.55,2944.4,2944.2,3.39649875]
[1752552317857,0.431,2944.7,2943.8,0.8053]
[1752552318067,5.245,2944.6,2944.3,0.8053]
[1752552318272,5.245,2944.6,2944.3,4.20168575]
[1752552318452,0.55,2944.7,2944.4,3.39624252]
[1752552318652,8.148,2944.8,2944.4,4.76]
[1752552318885,5.244,2944.7,2944.4,4.76]
[1752552319682,5.244,2944.7,2944.4,8.15623709]
[1752552319884,5.244,2944.7,2944.5,3.39613093]
[1752552320090,0.431,2944.6,2944.4,4.76]
[1752552320245,1.3679,2944.5,2944.0,0.8229]
[1752552320596,0.55,2944.3,2944.0,0.8229]
[1752552320948,0.981,2944.3,2944.0,0.8229]
[1752552321386,0.55,2944.3,2944.0,4.21961174]
[1752552321563,0.55,2944.3,2944.2,3.39650838]
[1752552321891,5.798,2944.3,2944.2,3.39650838]
[1752552322184,6.229,2944.3,2944.0,0.8229]
[1752552322384,0.431,2944.2,2943.8,4.21979982]
[1752552322686,5.798,2944.3,2944.0,3.39662914]
[1752552322886,5.798,2944.3,2944.1,3.39660826]
[1752552323389,0.1696,2944.4,2944.3,3.39639303]
[1752552323588,8.3176,2944.8,2944.3,4.39809303]
[1752552323814,5.246,2944.7,2944.3,4.39809303]
[1752552323989,5.246,2944.7,2942.8,0.26040746]
[1752552323990,0.793,2944.2,2943.7,0.002]
[1752552324182,4.7399699,2943.8,2943.7,0.002]
[1752552324392,20.0199699,2943.8,2943.7,0.002]
[1752552324593,20.4509699,2943.8,2943.7,0.002]
[1752552325109,20.4549699,2943.8,2943.7,0.002]
[1752552325684,5.1709699,2943.8,2943.7,0.002]
[1752552325880,10.4549699,2943.8,2943.7,0.002]
[1752552326271,20.4549699,2943.8,2943.7,0.002]
[1752552326609,1.3457,2943.3,2942.4,3.39847712]
[1752552326773,3.94784133,2943.1,2942.3,3.74757454]
[1752552327106,3.39791754,2943.0,2942.4,3.77325886]
[1752552327306,5.286,2942.9,2942.5,3.39846765]
[1752552327604,5.286,2942.9,2942.4,10.37475745]
[1752552327812,5.286,2942.9,2942.4,3.77329904]
[1752552328010,5.286,2942.9,2942.4,3.77327762]
[1752552328212,0.981,2942.8,2942.1,0.7844]
[1752552328410,3.39854737,2942.5,2941.9,3.39907557]
[1752552328617,5.839,2942.4,2941.9,3.39907557]
[1752552328801,6.27,2942.4,2941.9,0.75827811]
[1752552328984,6.27,2942.4,2941.9,10.75827811]
[1752552329186,0.431,2942.3,2941.9,0.75827811]
[1752552329384,0.431,2942.3,2941.8,0.7844]
[1752552329586,0.431,2942.2,2941.7,3.39932849]
[1752552329814,0.55,2942.0,2941.5,0.7705]
[1752552329998,4.37935786,2942.6,2942.0,3.39904826]
[1752552330186,0.55,2942.4,2941.9,3.39911527]
[1752552330515,5.288,2942.3,2942.0,3.39903976]
[1752552330669,5.288,2942.3,2942.1,3.398856]
[1752552330870,0.7957,2942.7,2941.6,3.39947182]
[1752552331236,0.55,2942.5,2941.8,0.7705]
[1752552331523,0.55,2942.5,2942.2,3.39881665]
[1752552331681,0.55,2942.5,2942.0,3.39900209]
[1752552331882,0.55,2942.5,2942.0,3.39904441]
[1752552331883,0.431,2942.4,2942.0,3.39904441]
[1752552332087,0.55,2942.2,2941.5,0.7705]
[1752552332443,1.77934854,2942.4,2941.6,3.43350557]
[1752552332444,0.8126,2942.4,2941.6,3.43350557]
[1752552332625,5.291,2942.1,2942.0,3.39897258]
[1752552332798,0.55,2942.5,2941.6,0.3489]
[1752552333141,0.55,2942.5,2941.5,0.7705]
[1752552333142,5.29,2942.4,2941.5,0.7705]
[1752552333319,5.721,2942.4,2942.0,3.3990327]
[1752552333484,0.431,2942.3,2942.0,3.3990327]
[1752552333685,0.55,2942.2,2941.8,3.39924253]
[1752552333886,0.981,2942.2,2941.8,3.56877285]
[1752552334233,0.7196,2942.0,2941.7,3.39932717]
[1752552334637,5.294,2941.9,2941.8,3.39927213]
[1752552334941,0.1696,2942.0,2941.9,3.3991638]
[1752552335219,0.1696,2942.0,2941.8,4.07914855]
[1752552335220,5.296,2942.0,2941.8,3.39924506]
[1752552336024,5.296,2942.0,2941.9,3.3991638]
[1752552337421,5.296,2942.0,2941.7,3.39934304]
[1752552337623,5.296,2942.0,2941.8,3.39927922]
[1752552338021,5.296,2942.0,2941.5,0.7847]
[1752552338399,5.296,2942.0,2941.9,3.3991638]
[1752552338749,0.55,2941.9,2941.2,0.8248]
[1752552338962,6.33456,2942.0,2941.0,3.40020175]
[1752552338963,3.94955739,2941.6,2941.0,3.40020175]
[1752552339159,5.302,2941.5,2941.1,3.40005685]
[1752552339331,0.981,2941.4,2940.9,0.8248]
[1752552339491,0.431,2941.3,2940.9,0.8248]
[1752552339691,0.431,2941.3,2940.9,4.22505387]
[1752552340006,0.431,2941.3,2941.0,3.40020401]
[1752552340189,0.431,2941.3,2941.0,3.4001486]
[1752552340431,0.431,2941.3,2940.9,4.22503683]
[1752552340612,0.431,2941.3,2940.8,3.40039762]
[1752552340800,3.94981411,2941.4,2940.7,3.40045508]
[1752552340801,0.4579,2941.2,2940.9,3.40030032]
[1752552340990,5.3,2941.1,2940.9,3.40030032]
[1752552341192,0.7796,2941.8,2940.7,0.797]
[1752552341528,10.7993,2942.3,2941.8,3.39923834]
[1752552341729,5.7659,2942.2,2941.9,3.39908672]
[1752552341905,5.7659,2942.2,2942.0,3.39898178]
[1752552342287,3.3983658,2942.6,2941.0,10.0]
[1752552342288,0.7993,2942.0,2941.0,10.0]
[1752552342516,5.7659,2941.9,2941.4,3.39970573]
[1752552342720,0.6,2942.0,2941.0,0.797]
[1752552343052,0.6,2942.0,2941.9,3.3991638]
[1752552343213,0.4579,2942.4,2942.1,3.39885873]
[1752552343417,5.323,2942.3,2942.0,3.39897022]
[1752552343736,1.0079,2942.2,2941.7,0.797]
[1752552344059,0.55,2942.0,2941.3,5.5723]
[1752552344192,5.322,2941.9,2941.3,0.8123]
[1752552344391,5.322,2941.9,2941.6,3.39946161]
[1752552344838,0.4579,2941.8,2941.6,3.39946161]
[1752552345227,0.4579,2941.8,2941.6,3.5690721]
[1752552345394,1.2229,2941.8,2941.6,0.1696]
[1752552345704,0.4579,2941.7,2941.3,3.39983026]
[1752552345910,0.4579,2941.7,2941.4,0.1696]
[1752552346094,0.4579,2941.7,2941.6,3.39951047]
[1752552346426,5.4916,2941.9,2941.7,3.3993949]
[1752552346626,5.322,2941.9,2941.7,3.39933609]
[1752552347236,0.765,2942.4,2941.7,0.3489]
[1752552347407,0.1696,2942.3,2942.2,3.39881721]
[1752552347936,5.319,2942.3,2942.2,0.1696]
[1752552348123,5.319,2942.3,2942.2,3.39881721]
[1752552348542,0.765,2942.8,2942.5,3.39847068]
[1752552348860,0.1696,2942.9,2942.8,3.39812423]
[1752552349038,6.0386,2942.9,2942.8,3.39812423]
[1752552349592,5.4886,2942.9,2942.8,3.39812423]
[1752552350042,0.1696,2942.9,2942.8,3.39812423]
[1752552350248,8.154,2943.0,2942.9,3.39800876]
[1752552350656,0.001,2943.7,2943.6,3.3972007]
[1752552350943,6.3269,2943.7,2943.6,3.3972007]
[1752552351102,6.49208,2943.7,2943.6,3.3972007]
[1752552351304,0.7196,2943.6,2943.4,3.39734336]
[1752552351535,0.4579,2943.5,2943.4,3.39743154]
[1752552351922,0.8249,2943.4,2943.1,3.39771447]
[1752552352122,0.55,2943.2,2943.1,3.39771447]
[1752552352324,1.0079,2943.2,2943.1,3.39771447]
[1752552352848,1.0079,2943.2,2942.7,0.1696]
[1752552353151,1.0079,2943.2,2942.0,3.40100564]
[1752552353152,0.55,2943.0,2942.8,3.39805126]
[1752552353342,0.55,2943.0,2942.3,0.8283]
[1752552353343,6.5786,2942.9,2942.7,3.39820835]
[1752552353665,0.4579,2942.8,2942.7,3.39820835]
[1752552353999,0.55,2942.7,2942.5,0.1696]
[1752552354238,5.9485,2942.6,2942.1,0.1696]
[1752552354426,0.4579,2942.5,2942.3,3.39868756]
[1752552354628,1.2089,2942.4,2942.2,3.39873686]
[1752552354848,1.9285,2942.4,2942.0,0.002]
[1752552355055,5.321,2942.3,2942.0,3.40104712]
[1752552355222,5.7789,2942.3,2942.0,3.40104712]
[1752552356041,5.7789,2942.3,2942.2,3.39881721]
[1752552356957,5.321,2942.3,2942.2,3.39881721]
[1752552357609,0.55,2942.8,2942.5,3.3983814]
[1752552357811,0.55,2942.6,2942.5,3.3983814]
[1752552358158,1.0079,2942.6,2942.5,3.3983814]
[1752552358859,0.55,2942.6,2942.5,3.3983814]
[1752552359062,8.907,2942.9,2942.8,3.39812423]
[1752552359063,9.457,2942.9,2942.8,3.39812423]
[1752552359209,14.9416,2942.9,2942.8,3.39812423]
[1752552359540,14.9416,2942.9,2942.4,0.1696]